bitfinex/quotes_BTCUSD_20251117
["timestamp","ask_amount","ask_price","bid_price","bid_amount"]
[1763380766633,0.01985,95743.0,95730.0,1.50936283]
[1763380769248,0.01985,95743.0,95730.0,1.49033283]
[1763380771114,0.01985,95743.0,95730.0,0.97060477]
[1763380771344,0.01985,95743.0,95730.0,1.49033283]
[1763380773366,0.01985,95743.0,95730.0,1.41233283]
[1763380775216,0.0234989,95747.0,95730.0,1.41233283]
[1763380775217,0.0234989,95747.0,95742.0,0.01546]
[1763380775450,0.03994,95747.0,95731.0,0.01546]
[1763380780479,0.03994,95747.0,95730.0,0.83460477]
[1763380780682,0.51972806,95740.0,95730.0,0.83460477]
[1763380780879,0.03994,95747.0,95730.0,0.83460477]
[1763380781056,0.02018,95739.0,95730.0,0.83460477]
[1763380787565,0.02018,95739.0,95730.0,0.75660477]
[1763380790795,0.03140373,95740.0,95730.0,0.75660477]
[1763380790796,0.03140373,95740.0,95731.0,0.02089187]
[1763380791347,0.03140373,95740.0,95730.0,1.27633283]
[1763380791692,0.03140373,95740.0,95731.0,0.02089187]
[1763380791890,0.03140373,95740.0,95730.0,1.27633283]
[1763380792728,0.03140373,95740.0,95730.0,0.75660477]
[1763380792895,0.03140373,95740.0,95730.0,1.27633283]
[1763380794591,0.03140373,95740.0,95730.0,1.19833283]
[1763380794797,0.03140373,95740.0,95730.0,0.67860477]
[1763380795210,0.03140373,95740.0,95730.0,1.19833283]
[1763380796674,0.03140373,95740.0,95730.0,0.67860477]
[1763380800792,0.323,95739.0,95730.0,0.67860477]
[1763380801202,0.04389,95731.0,95730.0,0.67860477]
[1763380801599,0.03140603,95738.0,95731.0,0.0154]
[1763380801823,0.01865,95748.0,95736.0,0.0154]
[1763380802169,0.05102605,95742.0,95736.0,0.0154]
[1763380802319,0.01962002,95741.0,95736.0,0.0154]
[1763380802536,0.04389,95737.0,95731.0,0.0154]
[1763380803336,0.03140557,95736.0,95731.0,0.05604]
[1763380803756,0.03140557,95736.0,95732.0,0.04064]
[1763380804132,0.03140557,95736.0,95731.0,0.0154]
[1763380805500,0.03140557,95736.0,95735.0,0.02561]
[1763380806412,0.03140557,95736.0,95735.0,0.06625]
[1763380807478,0.34365,95759.0,95735.0,0.06625]
[1763380807707,0.323,95749.0,95736.0,0.05604]
[1763380807943,0.323,95749.0,95731.0,0.0154]
[1763380807944,0.323,95745.0,95731.0,0.0154]
[1763380808382,0.04059,95744.0,95731.0,0.0154]
[1763380808605,0.07199241,95744.0,95730.0,0.53800477]
[1763380809039,0.04059,95743.0,95730.0,0.53800477]
[1763380810587,0.03240241,95744.0,95742.0,0.0154]
[1763380811045,0.03140241,95744.0,95742.0,0.0154]
[1763380814766,0.03140241,95744.0,95730.0,0.53800477]
[1763380814970,0.51972806,95740.0,95730.0,0.53800477]
[1763380815375,0.01865,95739.0,95730.0,0.53800477]
[1763380815579,0.05005465,95739.0,95730.0,0.53800477]
[1763380816571,0.05005465,95739.0,95730.0,0.46000477]
[1763380818435,0.01865,95739.0,95730.0,0.46000477]
[1763380818630,0.03140465,95738.0,95730.0,0.46000477]
[1763380823727,0.03140465,95738.0,95730.0,0.40600477]
[1763380824389,0.04551,95731.0,95730.0,0.40600477]
[1763380824515,0.47267178,95731.0,95730.0,0.40600477]
[1763380824875,0.52968483,95731.0,95730.0,0.40600477]
[1763380825031,0.56109632,95731.0,95730.0,0.40600477]
[1763380826154,0.45693454,95731.0,95730.0,0.40600477]
[1763380829207,0.45793454,95731.0,95730.0,0.40600477]
[1763380829766,0.45693454,95731.0,95730.0,0.40600477]
[1763380830210,0.43931149,95731.0,95730.0,0.40600477]
[1763380830369,0.43831149,95731.0,95730.0,0.40600477]
[1763380830570,0.40092149,95731.0,95730.0,0.40600477]
[1763380830793,0.35641149,95731.0,95730.0,0.40600477]
[1763380830993,0.35641149,95731.0,95730.0,0.35400477]
[1763380831864,0.35541149,95731.0,95730.0,0.35400477]
[1763380832058,0.35641149,95731.0,95730.0,0.35400477]
[1763380832578,0.35541149,95731.0,95730.0,0.35400477]
[1763380833197,0.35641149,95731.0,95730.0,0.35400477]
[1763380833589,0.35541149,95731.0,95730.0,0.35400477]
[1763380833787,0.41848149,95731.0,95730.0,0.35400477]
[1763380835293,0.41848149,95731.0,95690.0,0.51993138]
[1763380835294,0.323,95704.0,95684.0,0.0154]
[1763380835514,0.01957941,95703.0,95685.0,0.01848]
[1763380835685,0.01897,95715.0,95697.0,0.01101]
[1763380835862,0.01958455,95714.0,95702.0,0.01848]
[1763380836068,0.01958455,95713.0,95702.0,0.01848]
[1763380836263,0.01958455,95712.0,95702.0,0.01848]
[1763380836466,0.001,95704.0,95697.0,0.04777]
[1763380836666,0.001,95704.0,95685.0,0.01848]
[1763380836667,0.02568,95698.0,95685.0,0.01848]
[1763380837449,0.323,95705.0,95686.0,0.05766169]
[1763380837582,0.323,95703.0,95686.0,0.05766169]
[1763380837988,0.323,95703.0,95686.0,0.04066169]
[1763380838628,0.10416178,95704.0,95686.0,0.04066169]
[1763380838829,0.14155178,95704.0,95686.0,0.04066169]
[1763380839092,0.51993138,95700.0,95686.0,0.04066169]
[1763380840710,0.52093138,95700.0,95686.0,0.04066169]
[1763380840911,0.323,95699.0,95686.0,0.04066169]
[1763380842067,0.323,95699.0,95686.0,0.01976]
[1763380842591,0.324,95699.0,95686.0,0.01976]
[1763380843970,0.324,95699.0,95687.0,0.02090148]
[1763380844395,0.324,95699.0,95687.0,0.05766148]
[1763380845034,0.0209016,95698.0,95687.0,0.03366148]
[1763380846781,0.0209016,95698.0,95685.0,0.01848]
[1763380846782,0.0582916,95698.0,95685.0,0.01848]
[1763380847206,0.03739,95697.0,95685.0,0.01848]
[1763380847521,0.0209016,95696.0,95685.0,0.01848]
[1763380848447,0.0209016,95697.0,95685.0,0.01848]
[1763380848595,0.0209016,95696.0,95685.0,0.01848]
[1763380848796,0.0209016,95697.0,95685.0,0.01848]
[1763380849031,0.0209016,95696.0,95685.0,0.01848]
[1763380849236,0.0209016,95697.0,95685.0,0.01848]
[1763380849558,0.0209016,95696.0,95685.0,0.01848]
[1763380849729,0.0209016,95697.0,95685.0,0.01848]
[1763380849901,0.03141964,95698.0,95685.0,0.01848]
[1763380849902,0.0209016,95696.0,95685.0,0.01848]
[1763380850100,0.0209016,95697.0,95685.0,0.01848]
[1763380850339,0.0209016,95696.0,95685.0,0.01848]
[1763380850538,0.0209016,95697.0,95685.0,0.01848]
[1763380850702,0.0209016,95696.0,95685.0,0.01848]
[1763380850897,0.0209016,95697.0,95685.0,0.01848]
[1763380851201,0.0209016,95696.0,95686.0,0.03676]
[1763380851436,0.0209016,95697.0,95686.0,0.03676]
[1763380851657,0.0209016,95696.0,95685.0,0.01848]
[1763380852158,0.0209016,95696.0,95685.0,0.00848]
[1763380853916,0.0209016,95697.0,95685.0,0.04524]
[1763380854115,0.04046232,95696.0,95685.0,0.04524]
[1763380854316,0.0209016,95696.0,95685.0,0.04524]
[1763380854562,0.03141964,95698.0,95685.0,0.04524]
[1763380854563,0.0209016,95697.0,95685.0,0.04524]
[1763380854806,0.04046232,95696.0,95685.0,0.04524]
[1763380854967,0.0209016,95696.0,95685.0,0.04524]
[1763380855168,0.0209016,95697.0,95685.0,0.04524]
[1763380855465,0.0404632,95696.0,95685.0,0.04524]
[1763380855678,0.0209016,95696.0,95685.0,0.00848]
[1763380855879,0.0209016,95697.0,95685.0,0.00848]
[1763380856083,0.0404632,95696.0,95685.0,0.00848]
[1763380856223,0.0404632,95696.0,95684.0,0.01545543]
[1763380856224,0.323,95694.0,95684.0,0.01545543]
[1763380856427,0.02642,95685.0,95684.0,5.543e-05]
[1763380856632,0.0473216,95685.0,95684.0,5.543e-05]
[1763380856831,0.4261016,95685.0,95684.0,5.543e-05]
[1763380857105,0.4052,95685.0,95684.0,5.543e-05]
[1763380857522,0.41657268,95685.0,95684.0,5.543e-05]
[1763380858137,0.43613891,95685.0,95684.0,5.543e-05]
[1763380859281,0.43613891,95685.0,95665.0,0.01253543]
[1763380859505,0.51993138,95680.0,95665.0,0.01253543]
[1763380859706,0.0209016,95679.0,95665.0,0.01253543]
[1763380859907,0.0797316,95679.0,95665.0,0.01253543]
[1763380860441,0.02664942,95678.0,95666.0,0.03905]
[1763380860661,0.01827016,95677.0,95666.0,0.03905]
[1763380860858,0.01253543,95678.0,95666.0,0.03905]
[1763380861075,0.0209016,95677.0,95666.0,0.03905]
[1763380861293,0.0612816,95677.0,95665.0,0.01253543]
[1763380861510,0.01957534,95676.0,95665.0,0.01253543]
[1763380861731,0.04047483,95675.0,95665.0,0.01253543]
[1763380861961,0.01957323,95674.0,95665.0,0.01253543]
[1763380862169,0.0209016,95673.0,95665.0,0.01253543]
[1763380862581,0.0209016,95674.0,95665.0,0.01253543]
[1763380862799,0.04047939,95673.0,95665.0,0.01253543]
[1763380863016,0.0209016,95673.0,95665.0,0.01253543]
[1763380863239,0.05996664,95672.0,95664.0,0.00024582]
[1763380863482,0.04048824,95671.0,95664.0,0.00024582]
[1763380863693,0.0209016,95671.0,95664.0,0.00024582]
[1763380864069,0.0209016,95674.0,95664.0,0.00024582]
[1763380864271,0.04049752,95673.0,95664.0,0.00024582]
[1763380864503,0.01959592,95672.0,95664.0,0.00024582]
[1763380864712,0.05883,95675.0,95664.0,0.00024582]
[1763380864713,0.04049752,95671.0,95664.0,0.00024582]
[1763380864920,0.01845,95665.0,95664.0,0.00024582]
[1763380865126,0.03804592,95665.0,95664.0,0.00024582]
[1763380865336,0.42784592,95665.0,95664.0,0.00024582]
[1763380866574,0.44007592,95665.0,95664.0,0.00024582]
[1763380869531,0.39969592,95665.0,95664.0,0.00024582]
[1763380870074,0.44007592,95665.0,95664.0,0.00024582]
[1763380870873,0.37325642,95665.0,95664.0,0.00024582]
[1763380871076,0.37325642,95665.0,95664.0,0.07893582]
[1763380871077,0.35480642,95665.0,95664.0,0.07893582]
[1763380871482,0.35480642,95665.0,95664.0,0.02788582]
[1763380873011,0.03180642,95665.0,95664.0,0.02788582]
[1763380873468,0.03180642,95665.0,95664.0,0.06688582]
[1763380877113,0.0209016,95681.0,95664.0,0.06688582]
[1763380877334,0.03142613,95668.0,95664.0,0.06688582]
[1763380877538,0.01957402,95667.0,95664.0,0.06688582]
[1763380877741,0.01957402,95667.0,95665.0,0.03735]
[1763380877947,0.01957402,95667.0,95666.0,0.02426]
[1763380878590,0.01957402,95667.0,95666.0,0.01626]
[1763380880240,0.03142613,95668.0,95666.0,0.01626]
[1763380881934,0.01958557,95667.0,95666.0,0.01626]
[1763380882177,0.03142613,95668.0,95666.0,0.01626]
[1763380883045,0.03142613,95668.0,95664.0,0.01254]
[1763380884345,0.0209016,95674.0,95664.0,0.01254]
[1763380884545,0.0195994,95673.0,95664.0,0.01254]
[1763380884699,0.0209016,95674.0,95664.0,0.01254]
[1763380884700,0.040501,95672.0,95664.0,0.01254]
[1763380884896,0.0195994,95671.0,95664.0,0.01254]
[1763380885103,0.04822,95675.0,95664.0,0.01254]
[1763380885104,0.0195994,95670.0,95664.0,0.01254]
[1763380885300,0.04822,95675.0,95664.0,0.01254]
[1763380885301,0.0195994,95669.0,95664.0,0.01254]
[1763380885527,0.0209016,95674.0,95664.0,0.01254]
[1763380885732,0.04050748,95673.0,95664.0,0.00754]
[1763380885930,0.01966,95665.0,95657.0,0.01223]
[1763380886127,0.01961398,95664.0,95657.0,0.01223]
[1763380886366,0.04051558,95663.0,95657.0,0.01223]
[1763380886588,0.01961398,95662.0,95657.0,0.01223]
[1763380886778,0.0209016,95661.0,95657.0,0.01223]
[1763380886981,0.04051558,95661.0,95657.0,0.01223]
[1763380888589,0.04051558,95661.0,95655.0,0.00024585]
[1763380888590,0.10356558,95661.0,95655.0,0.00024585]
[1763380888795,0.42656558,95661.0,95655.0,0.00024585]
[1763380889011,0.40566398,95661.0,95655.0,0.00024585]
[1763380891221,0.38605,95661.0,95655.0,0.00024585]
[1763380891430,0.39024067,95661.0,95655.0,0.00024585]
[1763380893502,0.4098671,95661.0,95655.0,0.00024585]
[1763380894113,0.43231948,95661.0,95655.0,0.00024585]
[1763380894360,0.0238171,95661.0,95655.0,0.00024585]
[1763380894570,0.06666906,95661.0,95655.0,0.00024585]
[1763380895003,0.06766906,95661.0,95655.0,0.00024585]
[1763380895900,0.06866906,95661.0,95655.0,0.00024585]
[1763380896606,0.10722906,95661.0,95655.0,0.00024585]
[1763380897204,0.12364231,95661.0,95655.0,0.00024585]
[1763380897853,0.323,95639.0,95625.0,0.05525585]
[1763380898053,0.323,95639.0,95625.0,0.01669585]
[1763380898054,0.323,95637.0,95625.0,0.01669585]
[1763380898263,0.0209016,95636.0,95626.0,0.03856]
[1763380898461,0.03759745,95636.0,95626.0,0.03856]
[1763380898662,0.01669585,95636.0,95635.0,0.01965]
[1763380898885,0.01669585,95636.0,95635.0,0.04581]
[1763380899074,0.01669585,95636.0,95635.0,0.08481249]
[1763380899308,0.0209016,95648.0,95635.0,0.08481249]
[1763380899484,0.0209016,95648.0,95636.0,0.03856]
[1763380899685,0.05233876,95648.0,95635.0,0.04625249]
[1763380899905,0.01875,95647.0,95636.0,0.03856]
[1763380900062,0.0209016,95646.0,95636.0,0.03856]
[1763380900264,0.0209016,95646.0,95635.0,0.02009249]
[1763380900466,0.04324,95636.0,95635.0,0.00044249]
[1763380900666,0.0818,95636.0,95635.0,0.00044249]
[1763380901425,0.09555,95636.0,95635.0,0.00044249]
[1763380901818,0.01375,95636.0,95635.0,0.01955249]
[1763380901962,0.01375,95636.0,95635.0,0.08427249]
[1763380902981,0.01375,95636.0,95635.0,0.04571249]
[1763380903609,0.01375,95636.0,95635.0,0.08427249]
[1763380903785,0.01875,95676.0,95635.0,0.08427249]
[1763380903786,0.0209016,95653.0,95635.0,0.08427249]
[1763380903987,0.0209016,95660.0,95653.0,0.02616]
[1763380904376,0.03143238,95655.0,95654.0,0.03856]
[1763380904617,0.0209016,95667.0,95654.0,0.03856]
[1763380904796,0.03143202,95660.0,95654.0,0.04772]
[1763380905825,0.03243202,95660.0,95654.0,0.04772]
[1763380906039,0.16596621,95663.0,95654.0,0.02616]
[1763380906266,0.03143199,95661.0,95652.0,0.00982]
[1763380906425,0.001,95660.0,95652.0,0.00982]
[1763380906841,0.001,95660.0,95659.0,0.02616]
[1763380907051,0.03143199,95661.0,95659.0,0.02616]
[1763380907271,0.03143199,95661.0,95653.0,0.03856]
[1763380907472,0.03243199,95661.0,95652.0,0.00982]
[1763380907725,0.001,95660.0,95652.0,0.00982]
[1763380908226,0.03243199,95661.0,95659.0,0.02616]
[1763380908379,0.002,95661.0,95660.0,0.02616]
[1763380908765,0.03143005,95664.0,95660.0,0.02616]
[1763380909179,0.001,95661.0,95660.0,0.02616]
[1763380909482,0.03143005,95664.0,95660.0,0.02616]
[1763380909700,0.001,95661.0,95660.0,0.02616]
[1763380910579,0.001,95661.0,95660.0,0.06472]
[1763380912012,0.001,95661.0,95660.0,0.02616]
[1763380912230,0.002,95661.0,95660.0,0.02616]
[1763380912421,0.48021856,95680.0,95661.0,0.03856]
[1763380912619,0.02616,95670.0,95665.0,0.02616]
[1763380913105,0.02616,95670.0,95669.0,0.01965]
[1763380913716,0.02616,95670.0,95669.0,0.02009249]
[1763380913916,0.10416178,95674.0,95669.0,0.02009249]
[1763380914123,0.2487,95682.0,95673.0,0.04581]
[1763380914336,0.03142896,95675.0,95673.0,0.04581]
[1763380914536,0.2487,95682.0,95673.0,0.04581]
[1763380914738,0.03142801,95680.0,95673.0,0.04581]
[1763380915115,0.03342801,95680.0,95673.0,0.04581]
[1763380915389,0.03142801,95680.0,95673.0,0.04581]
[1763380917484,0.03242801,95680.0,95673.0,0.04581]
[1763380918286,0.03242801,95680.0,95679.0,0.04358]
[1763380918489,0.001,95680.0,95679.0,0.04358]
[1763380919139,0.001,95680.0,95679.0,0.00412]
[1763380920097,0.2487,95682.0,95679.0,0.00412]
[1763380920525,0.001,95680.0,95679.0,0.00412]
[1763380920955,0.2487,95682.0,95679.0,0.00412]
[1763380921365,0.2497,95682.0,95679.0,0.00412]
[1763380922186,0.2497,95682.0,95679.0,0.04197]
[1763380922600,0.2497,95682.0,95679.0,0.00412]
[1763380922816,0.2497,95682.0,95681.0,0.02446]
[1763380923006,0.001,95682.0,95681.0,0.06231]
[1763380923684,0.01102941,95691.0,95681.0,0.06231]
[1763380923886,0.01102941,95691.0,95682.0,0.03785]
[1763380924206,0.0113599,95692.0,95690.0,0.04358]
[1763380924405,0.03142205,95695.0,95690.0,0.04358]
[1763380924629,0.01485,95703.0,95690.0,0.04358]
[1763380924630,0.01485,95703.0,95691.0,0.03785]
[1763380924814,0.01485,95703.0,95694.0,0.02446]
[1763380924815,0.01115515,95698.0,95694.0,0.02446]
[1763380925031,0.03142205,95699.0,95697.0,0.04358]
[1763380925314,0.52063992,95710.0,95698.0,0.02446]
[1763380925489,0.03141853,95707.0,95702.0,0.02446]
[1763380925689,0.10416178,95709.0,95703.0,0.03785]
[1763380925895,0.03141853,95708.0,95703.0,0.03785]
[1763380926236,0.35441853,95708.0,95697.0,0.01912]
[1763380929325,0.00938,95698.0,95682.0,0.01912]
[1763380929730,0.00938,95698.0,95683.0,0.03785]
[1763380930871,0.001,95698.0,95683.0,0.03785]
[1763380931280,0.00557,95703.0,95683.0,0.03785]
[1763380931281,0.00557,95703.0,95684.0,0.02090213]
[1763380931504,0.001,95698.0,95697.0,0.01912]
[1763380932829,0.10416178,95706.0,95697.0,0.01912]
[1763380933265,0.001,95703.0,95697.0,0.01212]
[1763380933393,0.001,95703.0,95693.0,0.03785]
[1763380933746,0.323,95702.0,95693.0,0.03785]
[1763380934301,0.323,95702.0,95701.0,0.01912]
[1763380934915,0.323,95705.0,95690.0,0.05697]
[1763380935117,0.323,95699.0,95690.0,0.05697]
[1763380935372,0.323,95699.0,95691.0,0.03785]
[1763380936364,0.323,95699.0,95698.0,0.01912]
[1763380937506,0.324,95699.0,95698.0,0.01912]
[1763380937777,0.323,95699.0,95698.0,0.01912]
[1763380937977,0.10416178,95706.0,95698.0,0.01912]
[1763380938207,0.01955765,95705.0,95698.0,0.01912]
[1763380938364,0.01955765,95704.0,95698.0,0.01912]
[1763380938564,0.01955765,95703.0,95698.0,0.01912]
[1763380938783,0.10416178,95706.0,95698.0,0.01912]
[1763380938980,0.01955944,95705.0,95698.0,0.01912]
[1763380939328,0.001,95699.0,95698.0,0.01912]
[1763380939847,0.10416178,95706.0,95698.0,0.01912]
[1763380940101,0.01956132,95705.0,95693.0,0.01848]
[1763380940349,0.01956132,95704.0,95693.0,0.01848]
[1763380940599,0.54020124,95703.0,95693.0,0.01848]
[1763380940810,0.01956132,95702.0,95693.0,0.01848]
[1763380941039,0.01956132,95702.0,95693.0,0.0571]
[1763380941288,0.01956132,95702.0,95693.0,0.0481]
[1763380942464,0.34256132,95702.0,95693.0,0.0481]
[1763380942668,0.01956132,95701.0,95693.0,0.0481]
[1763380943926,0.02056132,95701.0,95693.0,0.0481]
[1763380944153,0.01956132,95700.0,95693.0,0.0481]
[1763380945563,0.01956132,95699.0,95693.0,0.0481]
[1763380945772,0.01956132,95698.0,95693.0,0.0481]
[1763380945998,0.01956132,95697.0,95693.0,0.0481]
[1763380946212,0.01956132,95696.0,95693.0,0.0481]
[1763380946418,0.10416178,95706.0,95693.0,0.0481]
[1763380946419,0.01956132,95695.0,95693.0,0.0481]
[1763380946631,0.01956132,95694.0,95693.0,0.0481]
[1763380946866,0.52041047,95703.0,95693.0,0.0481]
[1763380946867,0.001,95699.0,95693.0,0.0481]
[1763380947063,0.01956132,95698.0,95693.0,0.07345]
[1763380947503,0.01956132,95697.0,95694.0,0.03776]
[1763380947707,0.01956132,95696.0,95694.0,0.03776]
[1763380948026,0.01956132,95695.0,95694.0,0.03776]
[1763380948231,0.02758132,95702.0,95694.0,0.02676]
[1763380948416,0.01956132,95701.0,95690.0,0.01912]
[1763380948616,0.01,95691.0,95682.0,0.01912]
[1763380948979,0.01956132,95690.0,95682.0,0.01912]
[1763380950111,0.01802,95683.0,95671.0,0.01964]
[1763380950252,0.01956132,95682.0,95671.0,0.01964]
[1763380950652,0.323,95680.0,95671.0,0.0574]
[1763380950900,0.01956132,95679.0,95671.0,0.0574]
[1763380952374,0.01956132,95679.0,95671.0,0.01964]
[1763380952577,0.01956132,95679.0,95672.0,0.03776]
[1763380952772,0.01956132,95678.0,95672.0,0.03776]
[1763380952987,0.01956132,95677.0,95672.0,0.03776]
[1763380953188,0.01956132,95676.0,95672.0,0.03776]
[1763380953471,0.01956132,95675.0,95672.0,0.03776]
[1763380953626,0.323,95688.0,95675.0,0.02535]
[1763380953839,0.01961813,95687.0,95675.0,0.02535]
[1763380954017,0.01961813,95686.0,95675.0,0.06311]
[1763380954226,0.01961813,95685.0,95675.0,0.06311]
[1763380954551,0.01961813,95684.0,95675.0,0.06311]
[1763380954754,0.01961813,95683.0,95675.0,0.02535]
[1763380955049,0.01961813,95682.0,95675.0,0.02535]
[1763380955256,0.01961813,95681.0,95675.0,0.02535]
[1763380955456,0.01961813,95680.0,95671.0,0.01964]
[1763380955659,0.01961813,95679.0,95671.0,0.01964]
[1763380955893,0.52041047,95685.0,95671.0,0.01964]
[1763380955894,0.01961813,95678.0,95671.0,0.01964]
[1763380956101,0.00802,95672.0,95664.0,0.01964]
[1763380956971,0.00802,95672.0,95664.0,0.0574]
[1763380957337,0.00802,95672.0,95665.0,0.03776]
[1763380958131,0.52041047,95680.0,95671.0,0.01964]
[1763380958132,0.33102,95679.0,95671.0,0.01964]
[1763380958351,0.01960313,95678.0,95671.0,0.01964]
[1763380958566,0.01960313,95677.0,95671.0,0.01964]
[1763380958774,0.33102,95679.0,95671.0,0.01964]
[1763380958775,0.001,95672.0,95671.0,0.01964]
[1763380959151,0.33102,95679.0,95671.0,0.01964]
[1763380959353,0.33102,95679.0,95670.0,0.01964]
[1763380959354,0.00802,95679.0,95672.0,0.01964]
[1763380959579,0.001,95678.0,95672.0,0.01964]
[1763380960011,0.323,95672.0,95652.0,0.01964]
[1763380960173,0.323,95672.0,95659.0,0.01964]
[1763380960626,0.323,95672.0,95660.0,0.03776]
[1763380962420,0.324,95672.0,95660.0,0.02876]
[1763380962621,0.009,95671.0,95660.0,0.02876]
[1763380962822,0.52041047,95670.0,95660.0,0.02876]
[1763380963781,0.009,95682.0,95669.0,0.04499]
[1763380963987,0.009,95682.0,95670.0,0.02535]
[1763380964159,0.10416178,95674.0,95670.0,0.02535]
[1763380964508,0.10416178,95674.0,95670.0,0.06311]
[1763380965746,0.10516178,95674.0,95670.0,0.06311]
[1763380966351,0.001,95674.0,95671.0,0.03776]
[1763380966558,0.001,95674.0,95673.0,0.02535]
[1763380966937,0.001,95674.0,95673.0,0.06311]
[1763380967331,0.008,95687.0,95673.0,0.06311]
[1763380967547,0.00802,95682.0,95673.0,0.02535]
[1763380967746,0.001,95674.0,95673.0,0.02535]
[1763380968236,0.008,95687.0,95673.0,0.06311]
[1763380968432,0.01640837,95689.0,95686.0,0.04499]
[1763380968615,0.01654087,95689.0,95688.0,0.02535]
[1763380969145,0.02554087,95689.0,95681.0,0.01964]
[1763380969569,0.02554087,95689.0,95681.0,0.00964]
[1763380970315,0.02654087,95689.0,95681.0,0.00964]
[1763380970714,0.02554087,95689.0,95681.0,0.00964]
[1763380975373,0.12970265,95689.0,95681.0,0.00964]
[1763380976591,0.12970265,95689.0,95676.0,0.00764]
[1763380977017,0.12970265,95689.0,95677.0,0.01807]
[1763380977218,0.01654087,95689.0,95688.0,0.01807]
[1763380977440,0.03614638,95689.0,95688.0,0.01807]
[1763380977780,0.03614638,95689.0,95682.0,0.03685]
[1763380977899,0.01654087,95689.0,95682.0,0.03685]
[1763380978100,0.01960607,95688.0,95682.0,0.03685]
[1763380978302,0.01654087,95689.0,95682.0,0.03685]
[1763380978517,0.01960951,95688.0,95682.0,0.03685]
[1763380978772,0.01654087,95689.0,95682.0,0.03685]
[1763380978949,0.01960951,95688.0,95682.0,0.03685]
[1763380979144,0.01961318,95687.0,95682.0,0.03685]
[1763380979348,0.01654087,95689.0,95682.0,0.03685]
[1763380979554,0.01961318,95688.0,95682.0,0.03685]
[1763380979882,0.01961318,95687.0,95682.0,0.03685]
[1763380980173,0.01654087,95689.0,95682.0,0.03685]
[1763380980415,0.01961364,95688.0,95682.0,0.03685]
[1763380980706,0.01961364,95687.0,95682.0,0.03685]
[1763380980892,0.0001325,95689.0,95688.0,0.04252]
[1763380981375,0.0001325,95689.0,95688.0,0.07937]
[1763380983752,0.0001325,95689.0,95688.0,0.05137]
[1763380983934,0.0001325,95689.0,95688.0,0.07582]
[1763380987550,0.0001325,95689.0,95688.0,0.03897]
[1763380987941,0.0001325,95689.0,95688.0,0.01452]
[1763380988136,0.0001325,95689.0,95682.0,0.01807]
[1763380988579,0.0001325,95689.0,95664.0,0.01577]
[1763380988580,0.04119,95683.0,95664.0,0.01577]
[1763380988765,0.04119,95670.0,95658.0,0.01807]
[1763380988973,0.04119,95670.0,95654.0,0.01807]
[1763380988974,0.01718,95665.0,95654.0,0.01807]
[1763380989949,0.55774047,95664.0,95658.0,0.001]
[1763380990149,0.02401,95659.0,95658.0,0.001]
[1763380990591,0.06134,95659.0,95658.0,0.001]
[1763380990948,0.03733,95658.0,95632.0,0.05262]
[1763380991215,0.52041047,95650.0,95633.0,0.02091328]
[1763380991350,0.02401,95652.0,95639.0,0.05418]
[1763380991536,0.10416178,95657.0,95639.0,0.01733]
[1763380991537,0.05451,95653.0,95639.0,0.01733]
[1763380991735,0.52041047,95650.0,95639.0,0.01733]
[1763380992205,0.52041047,95650.0,95632.0,0.01577]
[1763380992206,0.03733,95649.0,95632.0,0.01577]
[1763380992405,0.01718,95640.0,95632.0,0.01577]
[1763380992991,0.01718,95640.0,95637.0,0.00024592]
[1763380993171,0.01718,95648.0,95637.0,0.00024592]
[1763380994007,0.01718,95653.0,95637.0,0.03709592]
[1763380994492,0.03733,95652.0,95637.0,0.03709592]
[1763380994690,0.323,95649.0,95637.0,0.03709592]
[1763380995616,0.323,95649.0,95637.0,0.00024592]
[1763380995617,0.03733,95648.0,95637.0,0.00024592]
[1763380996889,0.52041047,95650.0,95637.0,0.00024592]
[1763380998164,0.52041047,95650.0,95632.0,0.01577]
[1763380998165,0.10416178,95642.0,95632.0,0.00901592]
[1763380998361,0.62457225,95642.0,95632.0,0.00901592]
[1763380998732,0.52041047,95642.0,95632.0,0.00901592]
[1763380999003,0.03552,95648.0,95632.0,0.00901592]
[1763381002210,0.10416178,95642.0,95632.0,0.00901592]
[1763381002849,0.6252181,95642.0,95632.0,0.00901592]
[1763381003694,0.6252181,95642.0,95632.0,0.04469592]
[1763381003896,0.6252181,95642.0,95632.0,0.00901592]
[1763381004098,0.6252181,95642.0,95632.0,0.04469592]
[1763381004701,0.52105632,95642.0,95633.0,0.03613]
[1763381005083,0.52105632,95642.0,95633.0,0.02813]
[1763381005283,0.52105632,95642.0,95632.0,0.00901592]
[1763381005284,0.01718,95653.0,95641.0,0.0397]
[1763381005482,0.52105632,95650.0,95641.0,0.0397]
[1763381005883,0.52105632,95650.0,95641.0,0.01669]
[1763381006490,0.03526,95649.0,95632.0,0.00901592]
[1763381007117,0.03526,95649.0,95632.0,0.04514592]
[1763381007341,0.52105632,95642.0,95632.0,0.04514592]
[1763381012260,0.52105632,95642.0,95632.0,0.001]
[1763381012261,0.55631632,95642.0,95632.0,0.001]
[1763381012772,0.03526,95642.0,95632.0,0.001]
[1763381012972,0.55631632,95642.0,95632.0,0.001]
[1763381013361,0.55631632,95642.0,95627.0,0.00321592]
[1763381013557,0.03526,95642.0,95627.0,0.00321592]
[1763381013771,0.52105632,95640.0,95632.0,0.001]
[1763381013981,0.0079,95645.0,95627.0,0.00321592]
[1763381014239,0.52105632,95640.0,95627.0,0.00321592]
[1763381014450,0.52105632,95640.0,95632.0,0.001]
[1763381014660,0.01728,95639.0,95627.0,0.00321592]
[1763381014885,0.01728,95639.0,95632.0,0.001]
[1763381015138,0.0079,95645.0,95632.0,0.001]
[1763381016023,0.0079,95645.0,95632.0,0.0219135]
[1763381016242,0.0079,95645.0,95633.0,0.02091328]
[1763381016451,0.0079,95645.0,95634.0,0.02091306]
[1763381016662,0.0079,95645.0,95631.0,0.0285]
[1763381016868,0.0079,95645.0,95632.0,0.0219135]
[1763381017062,0.0079,95645.0,95632.0,0.0209135]
[1763381017272,0.01959035,95644.0,95632.0,0.0209135]
[1763381017502,0.01959035,95643.0,95633.0,0.001]
[1763381017709,0.52105632,95643.0,95632.0,0.0219135]
[1763381017905,0.13942178,95642.0,95632.0,0.001]
[1763381018309,0.01961706,95641.0,95632.0,0.001]